bitfinex/quotes_ETHUSD_20260310
["timestamp","ask_amount","ask_price","bid_price","bid_amount"]
[1773135783062,0.46438402,2069.2,2068.8,0.001]
[1773135783757,0.45987467,2069.2,2068.8,0.001]
[1773135784076,0.45987467,2069.0,2068.8,0.001]
[1773135784280,0.45987467,2069.0,2068.6,0.001]
[1773135784479,0.45987467,2069.0,2068.3,0.46065301]
[1773135786880,0.45987467,2068.8,2068.3,0.46065301]
[1773135787782,0.45987467,2068.8,2068.3,0.001]
[1773135788784,1.20848842,2068.7,2068.3,0.001]
[1773135788951,0.45987467,2068.5,2068.3,0.001]
[1773135789274,0.45987467,2068.5,2067.8,0.45965301]
[1773135789486,1.66836309,2068.7,2068.5,0.001]
[1773135789690,4.83457223,2069.3,2068.5,0.46065301]
[1773135789691,1.21018408,2069.3,2068.5,0.46065301]
[1773135789860,0.002,2068.9,2068.5,0.46065301]
[1773135791288,0.002,2068.9,2068.6,0.45965301]
[1773135793192,0.46187467,2068.9,2068.5,0.001]
[1773135793669,0.002,2068.9,2068.5,0.46065301]
[1773135793872,0.002,2069.3,2068.9,0.45965301]
[1773135794066,0.46387467,2069.3,2068.7,0.45965301]
[1773135794263,0.46187467,2069.3,2068.7,0.45965301]
[1773135794698,1.67001597,2069.3,2068.7,0.45965301]
[1773135794998,0.002,2069.2,2068.7,0.45965301]
[1773135795704,0.002,2069.2,2068.8,1.66808301]
[1773135795906,0.002,2069.3,2068.9,0.45965301]
[1773135797764,0.002,2069.3,2069.1,0.45965301]
[1773135799794,0.002,2069.3,2069.2,1.2081964]
[1773135801569,0.002,2069.4,2069.2,1.66784941]
[1773135801770,0.002,2069.4,2069.2,1.66784573]
[1773135803086,0.002,2069.4,2069.3,0.45965301]
[1773135803291,0.002,2069.6,2069.4,0.45965301]
[1773135803901,0.002,2069.6,2069.2,1.20819272]
[1773135803902,0.002,2069.6,2069.2,0.45965301]
[1773135807400,0.002,2069.6,2069.3,1.20813801]
[1773135808090,0.002,2069.6,2069.2,1.66780815]
[1773135808291,0.46187467,2069.6,2069.2,1.20817386]
[1773135808762,0.002,2069.6,2069.2,1.66782687]
[1773135809669,0.002,2069.6,2069.2,0.45965301]
[1773135809872,0.46187467,2069.6,2069.2,1.66782417]
[1773135811074,0.46187467,2069.6,2069.0,0.45965301]
[1773135811811,0.46187467,2069.6,2069.1,1.20825479]
[1773135811812,0.45987467,2069.5,2069.1,1.20825479]
[1773135812912,0.002,2069.6,2069.1,1.6679078]
[1773135813071,0.002,2069.6,2069.2,0.45965301]
[1773135813904,0.002,2069.6,2069.3,1.66445795]
[1773135815293,0.002,2069.6,2069.4,0.45631994]
[1773135816102,0.002,2069.5,2069.4,1.66439957]
[1773135816274,0.002,2069.5,2069.4,0.45631994]
[1773135818696,0.002,2069.5,2069.4,1.66439957]
[1773135818898,0.002,2069.5,2069.3,1.20810252]
[1773135820015,0.002,2069.5,2069.3,1.66442246]
[1773135820994,0.002,2069.8,2069.4,0.45631994]
[1773135823111,0.002,2069.8,2069.4,1.66436882]
[1773135823517,0.002,2069.8,2069.5,0.45631994]
[1773135825092,0.002,2069.8,2069.6,1.20796289]
[1773135825815,0.002,2069.8,2069.6,1.66428283]
[1773135826019,0.002,2069.9,2069.7,0.45631994]
[1773135827234,0.002,2069.9,2069.8,1.20784616]
[1773135827395,0.46025066,2069.9,2069.5,1.20797546]
[1773135827797,0.002,2069.9,2069.6,0.45967183]
[1773135828720,0.002,2069.7,2069.6,0.45967183]
[1773135829508,0.002,2069.7,2069.6,1.66763472]
[1773135829805,0.002,2069.9,2069.7,0.45967183]
[1773135830018,0.002,2070.2,2069.8,0.45967183]
[1773135831630,0.002,2070.2,2069.9,1.66745964]
[1773135836616,0.002,2070.2,2070.0,0.45967183]
[1773135838034,0.002,2070.2,2070.1,1.20767112]
[1773135838332,0.002,2070.2,2070.1,1.66734295]
[1773135840539,1e-08,2070.4,2070.1,2.60109369]
[1773135840714,1e-08,2070.4,2070.2,0.45967183]
[1773135842607,1e-08,2070.4,2070.2,1.66725643]
[1773135845428,0.46908767,2070.3,2069.9,0.001]
[1773135845742,0.46908767,2070.3,2069.8,0.4508034]
[1773135845743,0.46908768,2070.4,2069.8,0.4508034]
[1773135845940,0.46908768,2070.4,2070.0,0.4508034]
[1773135845941,1e-08,2070.4,2070.0,0.4508034]
[1773135847518,1e-08,2070.4,2070.1,1.20767112]
[1773135847718,1e-08,2070.4,2070.0,1.65849666]
[1773135848442,0.46908768,2070.4,2070.0,1.65849666]
[1773135848737,0.46908768,2070.4,2069.9,0.4508034]
[1773135849635,0.46908768,2070.4,2070.0,1.20772946]
[1773135849836,0.46908767,2070.3,2069.8,1.20780044]
[1773135850558,0.46908767,2070.3,2069.8,1.65860384]
[1773135850729,0.46908767,2070.3,2069.9,0.4508034]
[1773135851843,0.46908767,2070.2,2069.8,4.83137163]
[1773135852022,0.46908767,2070.2,2069.7,3.04167834]
[1773135852225,0.46908767,2070.2,2069.7,1.65869177]
[1773135853957,0.46908767,2070.1,2069.7,1.20788837]
[1773135854154,0.46908767,2070.1,2069.6,3.04273953]
[1773135854442,0.46908767,2070.1,2069.9,0.001]
[1773135854644,0.002,2070.2,2069.9,0.4518034]
[1773135855851,0.002,2070.2,2070.0,1.65853286]
[1773135856349,0.002,2070.2,2069.9,1.20876092]
[1773135857149,0.46908768,2070.4,2070.0,0.4508034]
[1773135857722,0.46908768,2070.4,2070.0,1.65850529]
[1773135857942,0.46908768,2070.4,2069.9,4.83211546]
[1773135857943,0.46908767,2070.3,2069.9,1.20873422]
[1773135858144,0.46908767,2070.3,2069.9,0.001]
[1773135858346,0.46908767,2070.2,2069.9,0.001]
[1773135859157,0.46908767,2070.2,2069.9,1.20878742]
[1773135859347,0.46908767,2070.2,2069.9,0.001]
[1773135860531,0.46908767,2070.1,2069.6,1.20895768]
[1773135862166,0.46908767,2070.1,2069.6,1.65976108]
[1773135862457,1.20772946,2070.0,2069.6,0.001]
[1773135862661,0.46908767,2069.9,2069.6,1.20895935]
[1773135863171,0.46908767,2069.9,2069.6,1.65976275]
[1773135863346,1.20761279,2070.2,2069.7,0.4508034]
[1773135863547,1.67670046,2070.2,2069.7,0.4508034]
[1773135864050,0.46908767,2070.1,2069.7,0.4508034]
[1773135864457,0.46908767,2070.1,2069.8,1.20784616]
[1773135864636,0.46908767,2070.1,2069.8,0.4508034]
[1773135864846,0.46908767,2070.1,2069.7,1.20789042]
[1773135865045,0.46908767,2070.1,2069.7,1.65869382]
[1773135865563,4.83032409,2070.3,2069.8,0.4508034]
[1773135865564,0.46908767,2070.3,2069.8,0.4508034]
[1773135865739,1e-08,2070.4,2069.8,0.4508034]
[1773135866653,1e-08,2070.4,2070.0,0.4508034]
[1773135866854,0.002,2070.2,2070.0,0.4508034]
[1773135869866,0.002,2070.2,2070.0,1.65851966]
[1773135870375,0.002,2070.2,2070.0,0.4508034]
[1773135871437,0.002,2070.2,2069.9,1.20773584]
[1773135872673,0.002,2070.2,2069.9,1.65853924]
[1773135873971,0.50190652,2070.2,2069.9,1.65853924]
[1773135874442,0.49990652,2070.1,2069.8,1.20883909]
[1773135876256,0.49990652,2069.9,2069.8,0.001]
[1773135876778,0.49990652,2070.0,2069.8,0.001]
[1773135877375,0.49990652,2070.0,2069.6,0.001]
[1773135878466,0.49990652,2069.9,2069.6,0.001]
[1773135879559,0.49990652,2069.9,2069.8,0.001]
[1773135879768,0.49990652,2069.9,2069.8,0.0002]
[1773135881588,1.70769433,2069.9,2069.8,0.0002]
[1773135881755,0.49990652,2069.9,2069.8,0.0002]
[1773135883081,1.20976861,2070.0,2069.8,0.0002]
[1773135883377,1.70967513,2070.0,2069.8,0.0002]
[1773135883749,1.70963748,2070.0,2069.8,0.0002]
[1773135883984,1.70964017,2070.0,2069.8,0.0002]
[1773135884888,1.70964017,2070.0,2069.8,0.47416195]
[1773135884889,1.20973365,2070.0,2069.8,0.47416195]
[1773135885098,0.002,2070.0,2069.8,0.47416195]
[1773135885248,0.002,2070.2,2069.8,0.47416195]
[1773135885877,0.002,2070.2,2070.0,0.47396195]
[1773135888455,0.48254352,2070.0,2069.6,0.001]
[1773135888654,0.48254352,2070.0,2069.6,1.68196554]
[1773135888853,0.002,2070.2,2069.7,0.47300535]
[1773135888854,0.48454352,2070.2,2069.7,0.47300535]
[1773135890176,0.002,2070.2,2069.7,0.47300535]
[1773135890680,0.002,2070.2,2069.8,1.68085151]
[1773135891272,0.002,2070.2,2069.8,0.47300535]
[1773135891658,0.48454352,2070.2,2069.8,0.47300535]
[1773135892192,0.48454352,2070.2,2070.1,0.001]
[1773135892574,1.69215631,2070.2,2070.1,0.001]
[1773135894688,1.69215631,2070.2,2069.9,0.001]
[1773135894984,5.76390787,2070.3,2069.9,0.001]
[1773135894985,0.48254352,2070.3,2069.9,0.47400535]
[1773135895479,0.48254352,2070.0,2069.6,0.001]
[1773135895651,0.48254352,2070.0,2069.6,1.20895636]
[1773135896084,0.48254352,2070.0,2069.6,1.68196171]
[1773135896675,0.48254352,2070.0,2069.7,0.47300535]
[1773135897384,1.69029265,2070.0,2069.7,0.47300535]
[1773135898889,0.48254352,2069.9,2069.5,0.001]
[1773135899184,0.48254352,2069.9,2069.5,1.20901747]
[1773135899387,0.48254352,2069.9,2069.5,1.68202282]
[1773135899590,1.69034434,2069.9,2069.5,1.68202282]
[1773135899789,0.48254352,2069.9,2069.5,1.68202282]
[1773135900284,0.48254352,2069.8,2069.5,0.47400535]
[1773135900475,0.48254352,2069.8,2069.4,0.001]
[1773135900871,0.48254352,2069.4,2069.1,0.001]
[1773135901586,0.48254352,2069.3,2069.0,2.94107605]
[1773135902570,0.48254352,2069.8,2069.1,0.47300535]
[1773135903504,1.69657094,2069.7,2069.1,1.68123076]
[1773135903659,0.48866642,2069.6,2069.1,1.68123076]
[1773135904990,0.48866642,2069.6,2069.2,0.001]
[1773135905495,0.48866642,2069.4,2069.2,0.001]
[1773135907784,1.20813801,2069.3,2069.2,0.001]
[1773135907978,1.69680443,2069.3,2069.2,0.001]
[1773135908385,0.48866642,2069.2,2069.0,2.94107605]
[1773135908570,1.20813801,2069.3,2069.0,2.94107605]
[1773135908772,1.69676419,2069.4,2069.0,2.94107605]
[1773135908994,1.69675322,2069.4,2069.0,2.94107605]
[1773135909972,0.48866642,2069.3,2069.0,2.94107605]
[1773135911496,0.48866642,2069.3,2069.0,2.82828745]
[1773135912284,1.2081964,2069.2,2069.0,2.82828745]
[1773135912479,0.48866642,2069.1,2069.0,2.62828717]
[1773135913084,0.48866642,2069.1,2068.7,0.001]
[1773135915772,1.20831319,2069.0,2068.7,0.001]
[1773135916501,0.48866642,2068.9,2068.5,0.001]
[1773135917403,0.48866642,2068.9,2068.6,0.001]
[1773135917899,0.48866642,2068.7,2068.1,1.70394804]
[1773135918078,0.48866642,2068.7,2068.2,0.49515351]
[1773135918273,0.48866642,2068.7,2068.4,0.001]
[1773135920701,1.20854684,2068.6,2068.4,0.001]
[1773135920875,1.69721326,2068.6,2068.4,0.001]
[1773135924512,6.16672066,2068.8,2068.4,0.49615351]
[1773135924513,1.69714343,2068.8,2068.4,0.49615351]
[1773135925206,0.48866642,2068.7,2068.4,0.001]
[1773135927097,1.20847701,2068.8,2068.4,0.49615351]
[1773135927816,0.48866642,2068.7,2068.4,0.001]
[1773135928046,0.48866642,2068.7,2067.8,2.59895594]
[1773135928047,0.48866642,2068.4,2067.8,0.49515351]
[1773135928189,0.48866642,2068.2,2067.6,0.49515351]
[1773135929098,1.82466642,2068.4,2067.6,0.49515351]
[1773135929922,1.69738855,2068.3,2067.8,0.41785872]
[1773135930216,0.48866642,2068.7,2068.2,0.49515351]
[1773135930528,0.48866642,2068.9,2068.2,0.49515351]
[1773135930730,0.002,2068.7,2068.2,0.49515351]
[1773135931027,0.48866642,2068.5,2067.9,0.49515351]
[1773135932010,1.69731077,2068.5,2068.0,1.70405099]
[1773135932214,0.48866642,2068.5,2068.0,1.70405099]
[1773135932416,0.48866642,2068.5,2068.1,0.49515351]
[1773135932601,1.2085771,2068.6,2068.1,0.49515351]
[1773135932926,1.69724352,2068.6,2068.1,0.49515351]
[1773135933330,0.48866642,2068.6,2068.1,0.49515351]
[1773135933847,1.210523,2068.7,2068.1,0.49515351]
[1773135934125,0.002,2068.7,2068.4,0.4538416]
[1773135936137,0.002,2068.7,2068.5,1.66244686]
[1773135936933,0.002,2068.7,2068.4,1.20862212]
[1773135937134,0.002,2068.7,2068.3,0.4538416]
[1773135937334,0.002,2068.7,2068.3,1.66256077]
[1773135937736,0.002,2068.7,2068.4,0.4538416]
[1773135938315,0.002,2068.7,2068.3,1.20869935]
[1773135938503,0.002,2068.7,2068.3,1.66254095]
[1773135938707,0.002,2068.7,2068.4,0.4538416]
[1773135940432,0.002,2068.7,2068.5,1.20860526]
[1773135941112,0.002,2068.7,2068.5,1.66244686]
[1773135941715,0.002,2068.7,2068.3,1.66253504]
[1773135942251,0.47274917,2068.7,2068.3,1.66253504]
[1773135942731,1.6812754,2068.7,2068.3,0.4538416]
[1773135942932,1.6812754,2068.7,2068.2,1.20876673]
[1773135943626,0.47074917,2068.6,2068.1,1.66263307]
[1773135943945,0.002,2068.5,2068.1,1.66263307]
[1773135944319,0.002,2068.5,2068.0,6.22247682]
[1773135944320,0.47274917,2068.5,2068.0,1.20989518]
[1773135945214,1.67941287,2068.4,2068.0,0.001]
[1773135945645,0.47074917,2068.3,2068.0,0.001]
[1773135946216,0.002,2068.5,2068.0,0.4548416]
[1773135947029,1.69386612,2068.5,2068.0,0.4548416]
[1773135947220,1.69386612,2068.5,2068.0,1.66373857]
[1773135947428,0.48325375,2068.4,2068.0,1.66373857]
[1773135947623,0.48325375,2068.4,2068.0,0.001]
[1773135948122,0.48325375,2068.4,2068.0,1.2098814]
[1773135948315,0.48325375,2068.4,2068.0,0.001]
[1773135949347,0.48325375,2068.3,2068.0,0.001]
[1773135950631,0.48325375,2068.3,2067.8,0.001]
[1773135951329,0.48325375,2068.3,1902.6,0.02]
[1773135951330,0.48325375,2067.8,2066.7,1.70500661]
[1773135951528,2.6214452,2067.7,2067.1,0.49534871]
[1773135952129,3.10469895,2067.7,2067.1,0.49534871]
[1773135952332,0.48325375,2068.2,2067.4,0.49534871]
[1773135952533,0.48325375,2068.1,2067.4,0.49534871]
[1773135954052,0.48325375,2068.1,2067.5,1.20918984]
[1773135954654,0.48325375,2068.1,2067.5,1.70453855]
[1773135954947,1.69210549,2068.1,2067.5,1.70453855]
[1773135955450,0.48325375,2068.1,2067.5,1.70453855]
[1773135955655,0.48325375,2068.1,2067.6,0.49534871]
[1773135955821,1.82225375,2068.5,2067.9,1.70430465]
[1773135956026,3.03086101,2068.5,2067.9,1.70430465]
[1773135956551,0.002,2068.3,2067.9,1.70430465]
[1773135957121,0.002,2068.3,2067.7,1.70537588]
[1773135957122,0.48525375,2068.3,2067.7,1.70537588]
[1773135957353,0.48525375,2068.3,2067.7,1.21005827]
[1773135957954,1.69401493,2068.3,2067.7,1.21005827]
[1773135958251,0.48325375,2068.2,2067.7,1.21005827]
[1773135958749,0.48325375,2068.2,2067.7,0.001]
[1773135958931,0.48325375,2068.2,2067.7,0.49634871]
[1773135959120,0.002,2068.3,2067.7,0.49634871]
[1773135959521,0.002,2068.3,2067.8,0.49534871]
[1773135960254,0.002,2068.3,2067.9,1.20895594]
[1773135960640,0.002,2068.3,2067.8,1.70432353]
[1773135960954,0.48525375,2068.3,2067.7,1.21004395]
[1773135961634,0.48525375,2068.3,2067.8,0.49534871]
[1773135961834,0.002,2068.3,2067.8,0.49534871]
[1773135962451,0.002,2068.3,2068.0,0.49534871]
[1773135964328,0.002,2068.7,2068.2,0.49574182]
[1773135966833,0.002,2068.7,2068.3,1.20872213]
[1773135967134,0.002,2068.7,2068.3,1.70446393]
[1773135969166,0.002,2068.7,2067.8,0.49574178]
[1773135969167,0.48277889,2068.6,2067.8,0.49574178]
[1773135969335,0.48277889,2068.6,2068.0,0.49574178]
[1773135969530,0.48277889,2068.6,2068.1,0.49674178]
[1773135969868,0.002,2068.5,2068.1,0.49674178]
[1773135970451,0.002,2068.5,2068.1,0.001]
[1773135971272,1.21060526,2068.5,2068.1,0.001]
[1773135971764,0.002,2068.5,2068.1,0.49674176]
[1773135972969,0.002,2068.5,2068.1,0.001]
[1773135972970,0.48477889,2068.5,2068.1,0.001]
[1773135973367,0.48277889,2068.3,2068.1,0.001]
[1773135975548,1.69152899,2068.3,2068.1,0.001]
[1773135976080,0.48277889,2068.2,2067.9,0.001]
[1773135976390,0.48277889,2068.2,2067.7,1.70578592]
[1773135976391,0.48277889,2068.1,2067.7,0.001]
[1773135977590,1.20889748,2068.0,2067.7,0.001]
[1773135978325,0.48277889,2067.9,2067.7,0.001]
[1773135978464,0.48277889,2067.9,2067.6,0.001]
[1773135978665,0.48277889,2067.9,2067.1,1.70614515]
[1773135979878,0.48277889,2067.7,2067.1,1.70616358]
[1773135980082,0.48277889,2067.7,2067.2,0.4967417]
[1773135980779,0.48277889,2067.7,2067.0,0.4967417]
[1773135981997,0.48277889,2067.5,2066.8,0.49674169]
[1773135982295,0.48277889,2067.5,2066.6,0.49674168]
[1773135982871,0.48277889,2067.5,2067.2,0.001]
[1773135984102,1.69198954,2067.5,2067.2,0.001]
[1773135984678,0.48277889,2067.8,2067.2,0.001]
[1773135984866,0.002,2067.9,2067.2,0.49774167]
[1773135985401,1.21097754,2067.9,2067.2,0.49774167]
[1773135985894,1.69375643,2067.9,2067.2,0.49774167]
[1773135986482,1.69375643,2067.9,2067.3,1.20930682]
[1773135986995,0.48277889,2067.8,2067.3,1.20930682]
[1773135987888,0.002,2067.9,2067.4,0.49674165]
[1773135988792,0.002,2067.9,2067.5,1.70593148]
[1773135991107,0.002,2067.9,2067.6,0.49674163]
[1773135991786,0.002,2067.9,2067.3,1.70604845]
[1773135991986,0.002,2067.9,2067.4,0.49674163]
[1773135993104,0.002,2067.9,2067.5,1.20918984]
[1773135994014,0.46650439,2067.9,2067.3,1.20925946]
[1773135994580,0.46650439,2067.9,2067.3,1.67684318]
[1773135994892,0.002,2067.9,2067.4,0.46758372]
[1773135995285,0.002,2067.9,2067.5,1.67677356]
[1773135996803,0.002,2067.9,2067.6,0.001]
[1773135997001,0.002,2067.7,2067.6,0.001]
[1773135997812,0.002,2067.9,2067.6,0.001]
[1773135998313,0.002,2067.9,2067.6,0.46858372]
[1773135998712,0.46650439,2068.2,2067.9,0.46758372]
[1773135998713,0.002,2068.2,2067.9,0.46758372]
[1773135999014,0.002,2068.5,2067.9,0.46758372]
[1773135999884,0.002,2068.5,2068.0,1.20889748]
[1773136001897,0.46650439,2068.5,2068.0,1.20889748]
[1773136002487,0.46650439,2068.4,2067.8,4.83590579]
[1773136002986,0.46650439,2068.4,2067.8,5.30348951]
[1773136003998,0.46450439,2068.3,2067.8,1.67659813]
[1773136004316,0.46450439,2068.3,2067.8,1.20901441]
[1773136006021,0.49704721,2068.2,2067.6,1.21008599]
[1773136006223,0.49704721,2068.2,2067.6,1.21013]
[1773136007222,0.49704721,2068.2,2067.6,0.001]
[1773136008401,0.49704721,2068.0,2067.6,0.001]
[1773136010608,1.70598368,2068.0,2067.4,0.48969677]
[1773136010922,0.49704721,2067.9,2067.4,0.48969677]
[1773136011439,0.49704721,2067.9,2067.6,0.001]
[1773136011896,1.21093647,2068.0,2067.6,0.001]
[1773136012097,1.70798368,2068.0,2067.6,0.001]
[1773136012315,1.70794749,2068.0,2067.6,0.001]
[1773136012926,0.49904721,2068.0,2067.5,0.48869677]
[1773136013124,0.49704721,2067.8,2067.4,0.001]
[1773136013325,0.002,2068.0,2067.4,1.69892711]
[1773136013326,0.49904721,2068.0,2067.4,1.69892711]
[1773136013525,0.49904721,2068.0,2067.5,0.48869677]
[1773136014331,0.49904721,2068.0,2067.4,1.21023034]
[1773136014530,0.49904721,2068.0,2067.4,0.48969677]
[1773136014706,0.49904721,2068.0,2067.4,1.21023942]
[1773136014905,0.49704721,2067.8,2067.4,0.001]
[1773136015245,1.70799257,2068.0,2067.4,0.48969677]
[1773136015546,1.70796844,2068.0,2067.4,0.48969677]
[1773136016621,0.49704721,2067.9,2067.4,0.001]
[1773136017040,1.70603891,2067.9,2067.4,0.001]
[1773136017554,0.49704721,2067.8,2067.4,0.001]
[1773136019039,0.49704721,2067.8,2067.4,1.21024833]
[1773136019335,0.49704721,2067.8,2067.4,1.6989451]
[1773136020224,1.70606701,2067.8,2067.4,1.6989451]
[1773136020418,1.70606701,2067.8,2067.4,0.48969677]
[1773136020634,0.49704721,2067.8,2067.4,0.48969677]
[1773136020829,1.70606279,2067.8,2067.4,0.48969677]
[1773136021232,0.49704721,2067.8,2067.4,1.69891886]
[1773136021433,0.002,2068.0,2067.5,0.48869677]
[1773136021635,0.002,2068.0,2067.7,0.48869677]
[1773136023113,0.002,2068.0,2067.4,2.14592736]
[1773136023314,0.49704721,2067.9,2067.4,0.001]
[1773136023526,0.4508073,2067.7,2067.4,0.001]
[1773136023742,0.4508073,2067.7,2067.4,1.21024622]
[1773136024248,0.4508073,2067.7,2067.5,0.001]
[1773136025345,0.4508073,2067.6,2067.5,0.001]
[1773136025520,0.4508073,2067.9,2067.4,0.002]
[1773136025844,0.4508073,2067.9,2067.4,0.47187481]
[1773136027513,1.20899846,2067.9,2067.4,1.21122457]
[1773136027714,0.4508073,2067.8,2067.4,0.002]
[1773136028365,0.4508073,2067.8,2067.3,1.21028258]
[1773136028560,0.4508073,2067.8,2067.3,1.21228258]
[1773136029659,0.4508073,2067.8,2067.3,1.68216873]
[1773136029825,1.65982947,2067.8,2067.3,1.68216873]
[1773136030020,0.4508073,2067.7,2067.3,0.003]
[1773136031025,0.4508073,2067.7,2067.3,1.21228899]
[1773136031235,1.65988018,2067.7,2067.3,1.21228899]
[1773136031461,0.4508073,2067.6,2067.3,0.003]
[1773136031625,1.65999438,2067.6,2067.3,0.003]
[1773136032245,0.4508073,2067.5,2067.3,0.003]
[1773136033125,0.4508073,2067.8,2067.3,0.003]
[1773136033320,0.4508073,2067.7,2067.3,0.003]
[1773136033758,1.65988161,2067.7,2067.3,0.003]
[1773136034428,0.4508073,2067.6,2067.3,0.003]
[1773136035757,0.4508073,2067.5,2067.3,0.003]
[1773136035941,1.20916307,2067.6,2067.3,0.003]
[1773136036145,1.65997037,2067.6,2067.3,0.003]
[1773136036655,0.4508073,2067.6,2067.5,0.001]
[1773136036853,1.65993866,2067.6,2067.5,0.001]
[1773136039058,0.4508073,2067.5,2067.3,0.001]
[1773136039275,0.4508073,2067.5,2066.6,1.67955911]
[1773136039445,0.4508073,2067.5,2066.8,0.46987481]
[1773136040236,0.4508073,2067.3,2066.9,1.20954085]
[1773136040942,0.4508073,2067.3,2067.0,0.002]
[1773136041257,1.65988133,2067.7,2067.0,0.46987481]
[1773136041427,0.4508073,2067.7,2067.0,0.46987481]
[1773136042350,0.4508073,2067.7,2067.1,1.21142383]
[1773136042351,0.4508073,2067.5,2067.1,1.21142383]
[1773136043060,0.4508073,2067.5,2067.2,0.002]
[1773136043558,0.4508073,2067.5,2066.8,4.83839326]
[1773136043559,0.4508073,2067.5,2066.8,0.46987481]
[1773136043763,0.4508073,2067.5,2066.9,0.46987481]
[1773136044326,0.4508073,2067.4,2067.0,1.20948234]
[1773136044830,0.4508073,2067.4,2067.1,0.002]
[1773136045057,1.65999749,2067.5,2066.9,0.46987481]
[1773136045253,1.66000167,2067.5,2066.9,0.46987481]
[1773136045557,0.4508073,2067.5,2066.9,0.46987481]
[1773136045762,1.66000501,2067.5,2066.9,0.46987481]
[1773136046366,1.66000501,2067.5,2066.9,1.67936565]
[1773136046663,0.4508073,2067.4,2066.9,1.20949084]
[1773136047159,0.4508073,2067.4,2066.9,1.67936565]
[1773136047338,0.4508073,2067.4,2066.9,1.67937096]
[1773136047663,0.4508073,2067.4,2067.0,0.47187481]
[1773136048837,0.4508073,2067.4,2067.0,1.68133386]
[1773136049037,0.4508073,2067.4,2067.0,1.6813378]
[1773136049458,1.66009266,2067.4,2067.0,0.003]
[1773136049637,0.002,2067.4,2067.0,0.47287481]
[1773136049841,0.002,2067.4,2067.1,0.46987481]
[1773136050136,0.002,2067.4,2067.2,0.47187481]
[1773136050352,0.002,2067.4,2067.1,0.002]
[1773136050567,0.002,2067.4,2067.1,0.47187481]
[1773136051267,0.002,2067.4,2067.1,1.6812599]
[1773136051468,0.002,2067.4,2067.1,0.47187481]
[1773136051861,0.002,2067.4,2066.5,4.83906286]
[1773136051862,0.4508073,2067.1,2065.9,4.84003678]
[1773136052041,0.4508073,2067.1,2066.1,2.66837002]
[1773136052242,0.4508073,2067.1,2066.5,0.46987481]
[1773136053059,0.4508073,2067.1,2066.2,1.384]
[1773136053269,0.4508073,2066.9,2066.3,0.001]
[1773136054362,0.48962468,2066.8,2066.0,0.46499953]
[1773136054882,0.48962468,2066.8,2066.1,0.46599953]
[1773136055194,1.20954085,2066.9,2066.3,1.6748916]
[1773136055361,1.69916553,2066.9,2066.3,0.46499953]
[1773136056969,0.48962468,2066.9,2066.3,0.46499953]
[1773136057289,1.69921429,2066.9,2066.3,0.46499953]
[1773136057493,1.69921429,2066.9,2066.3,1.6748888]
[1773136057651,1.69916565,2066.9,2066.3,1.6748888]
[1773136058799,0.48962468,2067.2,2066.4,0.46599953]
[1773136059088,0.48962468,2067.2,2066.6,0.46499953]
[1773136059290,1.69904851,2067.1,2066.6,0.46499953]
[1773136059591,1.69904851,2067.1,2066.5,1.383]
[1773136059798,0.48962468,2067.0,2066.6,0.001]
[1773136060090,0.48962468,2067.0,2066.3,1.20986823]
[1773136060291,0.48962468,2067.0,2066.4,0.46499953]
[1773136060865,0.48962468,2067.0,2066.3,3.05787949]
[1773136061076,0.48962468,2067.0,2066.4,0.001]
[1773136061280,1.69911193,2067.0,2066.4,0.46599953]
[1773136061479,0.48962468,2066.9,2066.4,0.46599953]
[1773136061881,0.48962468,2066.9,2066.1,1.21000354]
[1773136062194,0.48962468,2066.9,2066.0,1.67502349]
[1773136062356,0.48962468,2066.9,2066.1,0.001]
[1773136063385,0.48962468,2066.7,2066.5,0.001]
[1773136064594,0.48962468,2066.7,2066.3,0.001]
[1773136064798,0.48962468,2066.7,2066.3,0.002]
[1773136065304,0.48962468,2066.7,2066.4,0.001]
[1773136065791,1.70116646,2066.9,2066.5,0.001]
[1773136065989,0.48962468,2066.8,2066.4,0.001]
[1773136067590,1.2096579,2066.7,2066.4,0.001]
[1773136067762,1.68898266,2066.7,2066.4,0.001]
[1773136068791,0.47932476,2066.6,2066.3,0.001]
[1773136068985,0.47932476,2066.6,2066.4,0.001]
[1773136069563,1.68904174,2066.6,2066.3,0.001]
[1773136069764,0.47932476,2066.6,2066.4,0.001]
[1773136069993,0.47932476,2066.6,2066.3,0.002]
[1773136069994,0.47932476,2066.5,2066.3,0.002]
[1773136070792,0.47932476,2066.5,2066.4,0.001]
[1773136072399,1.68909974,2066.5,2066.3,0.001]
[1773136072577,1.68909974,2066.5,2066.3,0.002]
[1773136073296,0.47932476,2066.5,2066.3,0.002]
[1773136073496,0.47932476,2066.7,2066.3,0.002]
[1773136073679,1.20960657,2066.8,2066.4,0.001]
[1773136073879,1.68893133,2066.8,2066.4,0.001]
[1773136074474,0.47932476,2066.7,2066.4,0.001]
[1773136074986,1.20960657,2066.8,2065.6,0.47252051]
[1773136074987,0.47932476,2066.5,2065.6,0.47252051]
[1773136075186,1.20960657,2066.8,2065.6,0.47252051]
[1773136075187,0.47932476,2066.7,2065.6,0.47252051]
[1773136075696,1.20977498,2066.5,2065.6,0.47252051]
[1773136075909,1.20975299,2066.6,2065.8,0.47252051]
[1773136076116,1.68902445,2066.7,2065.8,0.47252051]
[1773136076410,2.89307981,2066.6,2065.8,0.47252051]
[1773136077287,2.89507981,2066.6,2065.8,0.47252051]
[1773136077872,2.89507981,2066.6,2066.0,0.47252051]
[1773136078072,2.89507981,2066.6,2066.1,1.85252051]
[1773136078387,3.37440457,2066.6,2066.1,0.47252051]
[1773136078723,1.2117192,2066.6,2066.1,0.47252051]
[1773136079282,1.21173637,2066.6,2066.1,0.47252051]
[1773136079599,2.89528054,2066.5,2066.1,0.47252051]
[1773136079999,2.89528054,2066.5,2066.1,1.68251751]
[1773136080299,1.69106113,2066.6,2066.1,1.68251751]
[1773136080477,2.89686747,2066.5,2066.1,1.68251751]
[1773136080679,0.002,2066.6,2066.2,0.47252051]
[1773136080879,2.89658697,2066.7,2066.2,0.47252051]
[1773136081201,2.89854258,2066.6,2066.2,1.85152051]
[1773136081393,1.69093001,2066.8,2066.2,1.85152051]
[1773136081589,2.89881101,2066.7,2066.2,1.85152051]
[1773136081899,1.69093001,2066.8,2066.2,1.85152051]
[1773136082206,1.69093001,2066.8,2066.2,0.47252051]